fUST/lending_fUST_20250506
["ID","MTS","AMOUNT","RATE_DAILY","PERIOD"]
[360006084,1746477048655,-12607.13495863,0.000329,7]
[360006085,1746477048665,-151.0,0.00032904,8]
[360006086,1746477048675,-151.0,0.00032904,8]
[360006087,1746477048684,-151.0,0.00032904,2]
[360006088,1746477048694,-151.0,0.00032904,2]
[360006089,1746477048704,-500.0,0.00032904,2]
[360006090,1746477048715,-500.0,0.00032904,2]
[360006091,1746477048724,-272.05922794,0.00032904,2]
[360006092,1746477048734,-500.0,0.00032904,2]
[360006093,1746477048744,-151.0,0.00032904,2]
[360006094,1746477048754,-500.0,0.00032904,2]
[360006095,1746477048763,-1299.0,0.00032904,2]
[360006096,1746477048772,-151.0,0.00032904,2]
[360006097,1746477048782,-151.0,0.00032904,2]
[360006098,1746477048791,-500.0,0.00032904,2]
[360006099,1746477048801,-151.0,0.00032904,2]
[360006100,1746477048810,-502.00376777,0.00032904,2]
[360006101,1746477048820,-250.82137242,0.00032904,2]
[360006102,1746477048829,-500.0,0.00032904,2]
[360006103,1746477048839,-500.0,0.00032904,2]
[360006104,1746477048849,-151.0,0.00032904,2]
[360006105,1746477048858,-500.0,0.00032904,2]
[360006106,1746477048868,-151.0,0.00032904,2]
[360006107,1746477048877,-151.0,0.00032904,10]
[360006108,1746477048887,-151.0,0.00032904,10]
[360006109,1746477048896,-500.0,0.00032904,10]
[360006110,1746477048906,-500.0,0.00032904,10]
[360006111,1746477048916,-500.0,0.00032904,10]
[360006112,1746477048926,-223.0315306,0.00032923,2]
[360006113,1746477048936,-151.0,0.00032932,8]
[360006114,1746477048946,-151.0,0.00032932,8]
[360006115,1746477048955,-151.0,0.00032932,2]
[360006116,1746477048965,-500.0,0.00032932,2]
[360006117,1746477048974,-500.0,0.00032932,2]
[360006118,1746477048983,-500.0,0.00032932,2]
[360006119,1746477048993,-276.79645986,0.00032932,2]
[360006120,1746477049002,-198.0,0.00032932,2]
[360006121,1746477049012,-1299.0,0.00032932,2]
[360006122,1746477049022,-151.0,0.00032932,2]
[360006123,1746477049031,-199.07220192,0.00032932,2]
[360006124,1746477049041,-500.0,0.00032932,2]
[360006125,1746477049051,-241.39031166,0.00032932,2]
[360006126,1746477049061,-500.0,0.00032932,2]
[360006127,1746477049071,-500.0,0.00032932,2]
[360006128,1746477049081,-500.0,0.00032932,2]
[360006129,1746477049090,-151.0,0.00032932,2]
[360006130,1746477049100,-151.0,0.00032932,10]
[360006131,1746477049110,-151.0,0.00032932,10]
[360006132,1746477049120,-500.0,0.00032932,10]
[360006133,1746477049129,-500.0,0.00032932,10]
[360006134,1746477049139,-539.9150179,0.00032932,10]
[360006135,1746477049149,-151.0,0.00032959,8]
[360006136,1746477049158,-151.0,0.00032959,8]
[360006137,1746477049168,-151.0,0.00032959,2]
[360006138,1746477049178,-500.0,0.00032959,2]
[360006139,1746477049188,-500.0,0.00032959,2]
[360006140,1746477049198,-500.0,0.00032959,2]
[360006141,1746477049207,-1299.0,0.00032959,2]
[360006142,1746477049217,-151.0,0.00032959,2]
[360006143,1746477049227,-500.0,0.00032959,2]
[360006144,1746477049237,-500.0,0.00032959,2]
[360006145,1746477049247,-349.0,0.00032959,2]
[360006146,1746477049258,-500.0,0.00032959,2]
[360006147,1746477049267,-151.0,0.00032959,2]
[360006148,1746477049278,-255.09370797,0.00032959,10]
[360006149,1746477049288,-151.0,0.00032959,10]
[360006150,1746477049298,-500.0,0.00032959,10]
[360006151,1746477049308,-500.0,0.00032959,10]
[360006152,1746477049318,-258.39620319,0.00032987,8]
[360006153,1746477049327,-151.0,0.00032987,8]
[360006154,1746477049337,-151.0,0.00032987,2]
[360006155,1746477049347,-500.0,0.00032987,2]
[360006156,1746477049357,-500.0,0.00032987,2]
[360006157,1746477049367,-500.0,0.00032987,2]
[360006158,1746477049378,-1299.0,0.00032987,2]
[360006159,1746477049387,-198.0,0.00032987,2]
[360006160,1746477049397,-448.52264615,0.00032987,2]
[360006161,1746477049407,-500.0,0.00032987,2]
[360006162,1746477049418,-159.58109935,0.00032987,2]
[360006163,1746477049428,-224.9900817,0.00032987,10]
[360006164,1746477049438,-500.0,0.00032987,10]
[360006165,1746477049449,-500.0,0.00032987,10]
[360006166,1746477049459,-151.0,0.00032987,14]
[360006167,1746477049469,-307.102977,0.00032987,14]
[360006168,1746477049479,-307.102977,0.00032987,14]
[360006169,1746477049488,-5000.0,0.00033,30]
[360006170,1746477049498,-1342.0,0.00033,2]
[360006171,1746477049511,-45221.0,0.00033,2]
[360006172,1746477049520,-158.255058,0.00033,14]
[360006173,1746477049531,-151.0,0.00033,14]
[360006174,1746477049540,-151.0,0.00033,14]
[360006175,1746477049551,-151.0,0.00033,14]
[360006176,1746477049561,-151.0,0.00033,14]
[360006177,1746477049570,-151.0,0.00033,14]
[360006178,1746477049580,-151.0,0.00033,14]
[360006179,1746477049590,-151.0,0.00033,14]
[360006180,1746477049601,-151.0,0.00033,14]
[360006181,1746477049611,-151.0,0.00033,14]
[360006182,1746477049622,-151.0,0.00033,14]
[360006183,1746477049633,-151.0,0.00033,14]
[360006184,1746477049643,-151.0,0.00033,14]
[360006185,1746477049652,-151.0,0.00033,14]
[360006186,1746477049662,-6760.003047,0.00033,2]
[360006187,1746477049672,-6760.003047,0.00033,2]
[360006188,1746477049682,-151.0,0.00033,14]
[360006189,1746477049692,-275.10983,0.00033,2]
[360006190,1746477049701,-275.10983,0.00033,2]
[360006191,1746477049711,-202.49051699,0.00033,21]
[360006192,1746477049720,-1001.37981256,0.00033,7]
[360006193,1746477049729,-3012.65987163,0.00033,2]
[360006194,1746477049739,-635.0,0.00033,2]
[360006195,1746477049750,-325.563528,0.00033,14]
[360006196,1746477049760,-325.563528,0.00033,14]
[360006197,1746477049770,-841.77443764,0.00033,3]
[360006198,1746477049780,-227.643313,0.00033,14]
[360006199,1746477049790,-160.0,0.00033,3]
[360006200,1746477049799,-186.0,0.00033,8]
[360006201,1746477049809,-151.62033751,0.00033014,8]
[360006202,1746477049819,-193.65757542,0.00033014,2]
[360006203,1746477049830,-421.36572426,0.00033014,2]
[360006204,1746477049840,-500.0,0.00033014,2]
[360006205,1746477049849,-500.0,0.00033014,2]
[360006206,1746477049860,-1299.0,0.00033014,2]
[360006207,1746477049870,-500.0,0.00033014,2]
[360006208,1746477049880,-370.4194156,0.00033014,10]
[360006209,1746477049889,-151.0,0.00033014,10]
[360006210,1746477049899,-158.751894,0.00033026,10]
[360006211,1746477049908,-158.751894,0.00033026,7]
[360006212,1746477049919,-500.0,0.00033041,2]
[360006213,1746477049930,-343.60435048,0.00033041,2]
[360006214,1746477049940,-1299.0,0.00033041,2]
[360006215,1746477049950,-500.0,0.00033041,2]
[360006216,1746477049960,-500.0,0.00033069,2]
[360006217,1746477049970,-1299.0,0.00033069,2]
[360006218,1746477049979,-500.0,0.00033069,2]
[360006219,1746477049990,-500.0,0.00033096,2]
[360006220,1746477049999,-1299.0,0.00033096,2]
[360006221,1746477050009,-638.63810765,0.00033096,2]
[360006222,1746477050019,-500.0,0.00033124,2]
[360006223,1746477050028,-1299.0,0.00033124,2]
[360006224,1746477050038,-151.0,0.0003314,14]
[360006225,1746477050047,-151.0,0.0003314,14]
[360006226,1746477050057,-151.0,0.0003314,14]
[360006227,1746477050066,-151.0,0.0003314,14]
[360006228,1746477050076,-151.0,0.0003314,14]
[360006229,1746477050086,-557.119261,0.0003314,14]
[360006230,1746477050096,-557.119261,0.0003314,14]
[360006231,1746477050106,-449.113188,0.0003314,14]
[360006232,1746477050116,-449.113188,0.0003314,14]
[360006233,1746477050126,-160.0,0.00033149,10]
[360006234,1746477050136,-501.19080263,0.00033149,10]
[360006235,1746477050146,-172.89711998,0.00033149,10]
[360006236,1746477050155,-160.86072009,0.00033149,10]
[360006237,1746477050166,-151.0,0.0003315,14]
[360006238,1746477050175,-153.251682,0.0003315,14]
[360006239,1746477050185,-237.33712,0.0003315,14]
[360006240,1746477050194,-669.864565,0.0003315,14]
[360006241,1746477050204,-669.864565,0.0003315,14]
[360006242,1746477050213,-669.864565,0.0003315,14]
[360006243,1746477050222,-669.864565,0.0003315,14]
[360006244,1746477050232,-346.754623,0.0003315,14]
[360006245,1746477050242,-346.754623,0.0003315,14]
[360006246,1746477050251,-346.754623,0.0003315,14]
[360006247,1746477050261,-346.754623,0.0003315,14]
[360006248,1746477050270,-153.247129,0.0003315,14]
[360006249,1746477050280,-1954.51,0.0003315,8]
[360006250,1746477050289,-152.350443,0.0003315,14]
[360006251,1746477050299,-296.88359585,0.0003315,8]
[360006252,1746477050310,-719.2,0.0003315,8]
[360006253,1746477050320,-400.0,0.0003315,8]
[360006254,1746477050329,-400.0,0.0003315,8]
[360006255,1746477050338,-400.0,0.0003315,8]
[360006256,1746477050348,-400.0,0.0003315,8]
[360006257,1746477050357,-400.0,0.0003315,8]
[360006258,1746477050366,-400.0,0.0003315,8]
[360006259,1746477050376,-400.0,0.0003315,8]
[360006260,1746477050386,-400.0,0.0003315,8]
[360006261,1746477050395,-444.85,0.0003315,8]
[360006262,1746477050404,-400.0,0.0003315,8]
[360006263,1746477050414,-676.07,0.0003315,8]
[360006264,1746477050424,-206.545488,0.0003315,14]
[360006265,1746477050434,-206.545488,0.0003315,14]
[360006266,1746477050443,-400.0,0.0003315,8]
[360006267,1746477050453,-206.545488,0.0003315,14]
[360006268,1746477050462,-206.545488,0.0003315,14]
[360006269,1746477050471,-400.0,0.0003315,8]
[360006270,1746477050481,-400.0,0.0003315,8]
[360006271,1746477050491,-400.0,0.0003315,8]
[360006272,1746477050500,-631.57,0.0003315,8]
[360006273,1746477050511,-400.0,0.0003315,8]
[360006274,1746477050521,-400.0,0.0003315,8]
[360006275,1746477050530,-400.0,0.0003315,8]
[360006276,1746477050540,-414.93719434,0.0003315,8]
[360006277,1746477050550,-312.4511381,0.0003315,8]
[360006278,1746477050560,-400.0,0.0003315,8]
[360006279,1746477050569,-454.95,0.0003315,8]
[360006280,1746477050580,-185.817685,0.0003315,14]
[360006281,1746477050589,-400.0,0.0003315,8]
[360006282,1746477050599,-400.0,0.0003315,8]
[360006283,1746477050608,-479.7,0.0003315,8]
[360006284,1746477050618,-400.0,0.0003315,8]
[360006285,1746477050628,-400.0,0.0003315,8]
[360006286,1746477050638,-400.0,0.0003315,8]
[360006287,1746477050647,-400.0,0.0003315,8]
[360006288,1746477050656,-400.0,0.0003315,8]
[360006289,1746477050666,-400.0,0.0003315,8]
[360006290,1746477050676,-404.02571464,0.0003315,8]
[360006291,1746477050685,-400.0,0.0003315,8]
[360006292,1746477050695,-639.16,0.0003315,8]
[360006293,1746477050706,-151.0,0.0003315,14]
[360006294,1746477050719,-400.0,0.0003315,8]
[360006295,1746477050729,-151.0,0.0003315,14]
[360006296,1746477050738,-151.0,0.0003315,14]
[360006297,1746477050748,-151.0,0.0003315,14]
[360006298,1746477050758,-400.0,0.0003315,8]
[360006299,1746477050767,-547.05662584,0.0003315,8]
[360006300,1746477050777,-507.79,0.0003315,8]
[360006301,1746477050787,-400.0,0.0003315,8]
[360006302,1746477050796,-400.0,0.0003315,8]
[360006303,1746477050806,-150.87519143,0.0003315,8]
[360006304,1746477050815,-214.90898422,0.0003315,8]
[360006305,1746477050826,-400.0,0.0003315,8]
[360006306,1746477050835,-400.0,0.0003315,8]
[360006307,1746477050845,-151.0,0.0003315,14]
[360006308,1746477050855,-562.08,0.0003315,8]
[360006309,1746477050864,-168.993075,0.0003315,14]
[360006310,1746477050874,-402.903244,0.0003315,14]
[360006311,1746477050921,-402.903244,0.0003315,14]
[360006312,1746477050931,-400.0,0.0003315,8]
[360006313,1746477050942,-402.903244,0.0003315,14]
[360006314,1746477050951,-402.903244,0.0003315,14]
[360006315,1746477050962,-500.0,0.0003315,14]
[360006316,1746477050972,-504.71,0.0003315,8]
[360006317,1746477050981,-400.0,0.0003315,8]
[360006318,1746477050991,-151.0,0.0003315,14]
[360006319,1746477051000,-151.0,0.0003315,14]
[360006320,1746477051010,-400.0,0.0003315,8]
[360006321,1746477051019,-400.0,0.0003315,8]
[360006322,1746477051029,-400.0,0.0003315,8]
[360006323,1746477051039,-159.58086022,0.0003315,8]
[360006324,1746477051048,-458.02,0.0003315,8]
[360006325,1746477051058,-400.0,0.0003315,8]
[360006326,1746477051068,-151.0,0.0003315,14]
[360006327,1746477051077,-400.0,0.0003315,8]
[360006328,1746477051087,-400.0,0.0003315,8]
[360006329,1746477051096,-400.0,0.0003315,8]
[360006330,1746477051106,-690.49,0.0003315,8]
[360006331,1746477051116,-400.0,0.0003315,8]
[360006332,1746477051126,-1211.7,0.0003315,8]
[360006333,1746477051135,-400.0,0.0003315,8]
[360006334,1746477051144,-400.0,0.0003315,8]
[360006335,1746477051154,-400.0,0.0003315,2]
[360006336,1746477051164,-716.28,0.0003315,8]
[360006337,1746477051174,-400.0,0.0003315,8]
[360006338,1746477051184,-644.66,0.0003315,8]
[360006339,1746477051193,-400.0,0.0003315,8]
[360006340,1746477051203,-400.0,0.0003315,8]
[360006341,1746477051212,-400.0,0.0003315,8]
[360006342,1746477051222,-400.0,0.0003315,8]
[360006343,1746477051231,-730.5,0.0003315,8]
[360006344,1746477051241,-400.0,0.0003315,8]
[360006345,1746477051250,-400.0,0.0003315,8]
[360006346,1746477051259,-557.119261,0.0003315,14]
[360006347,1746477051269,-400.0,0.0003315,8]
[360006348,1746477051278,-400.0,0.0003315,8]
[360006349,1746477051287,-557.119261,0.0003315,14]
[360006350,1746477051296,-151.0,0.0003315,14]
[360006351,1746477051306,-151.0,0.0003315,14]
[360006352,1746477051315,-400.0,0.0003315,8]
[360006353,1746477051325,-500.0,0.0003315,8]
[360006354,1746477051335,-400.0,0.0003315,8]
[360006355,1746477051344,-474.85,0.0003315,8]
[360006356,1746477051353,-313.29072341,0.0003315,8]
[360006357,1746477051363,-400.0,0.0003315,8]
[360006358,1746477051372,-400.0,0.0003315,8]
[360006359,1746477051382,-400.0,0.0003315,8]
[360006360,1746477051391,-400.0,0.0003315,8]
[360006361,1746477051401,-2439.35,0.0003315,8]
[360006362,1746477051410,-724.61,0.0003315,8]
[360006363,1746477051421,-400.0,0.0003315,8]
[360006364,1746477051431,-400.0,0.0003315,8]
[360006365,1746477051441,-706.96,0.0003315,8]
[360006366,1746477051451,-400.0,0.0003315,8]
[360006367,1746477051461,-499.18,0.0003315,8]
[360006368,1746477051471,-400.0,0.0003315,8]
[360006369,1746477051481,-400.0,0.0003315,8]
[360006370,1746477051491,-400.0,0.0003315,2]
[360006371,1746477051502,-400.0,0.0003315,8]
[360006372,1746477051515,-400.0,0.0003315,8]
[360006373,1746477051524,-400.0,0.0003315,8]
[360006374,1746477051533,-400.0,0.0003315,8]
[360006375,1746477051543,-400.0,0.0003315,8]
[360006376,1746477051553,-400.0,0.0003315,8]
[360006377,1746477051563,-204.55047067,0.0003315,8]
[360006378,1746477051573,-473.77,0.0003315,8]
[360006379,1746477051583,-3364.55,0.0003315,8]
[360006380,1746477051594,-406.0022176,0.0003315,8]
[360006381,1746477051603,-400.0,0.0003315,8]
[360006382,1746477051613,-714.95,0.0003315,8]
[360006383,1746477051623,-400.0,0.0003315,8]
[360006384,1746477051633,-500.0,0.0003315,8]
[360006385,1746477051643,-400.0,0.0003315,8]
[360006386,1746477051652,-400.0,0.0003315,8]
[360006387,1746477051662,-400.0,0.0003315,8]
[360006388,1746477051673,-400.0,0.0003315,8]
[360006389,1746477051682,-422.23,0.0003315,8]
[360006390,1746477051692,-400.0,0.0003315,8]
[360006391,1746477051702,-400.0,0.0003315,8]
[360006392,1746477051712,-400.0,0.0003315,8]
[360006393,1746477051721,-400.0,0.0003315,8]
[360006394,1746477051731,-400.0,0.0003315,8]
[360006395,1746477051741,-715.56,0.0003315,8]
[360006396,1746477051751,-400.0,0.0003315,8]
[360006397,1746477051761,-643.8,0.0003315,8]
[360006398,1746477051771,-400.0,0.0003315,8]
[360006399,1746477051781,-400.0,0.0003315,8]
[360006400,1746477051791,-400.0,0.0003315,8]
[360006401,1746477051801,-400.0,0.0003315,8]
[360006402,1746477051812,-400.0,0.0003315,8]
[360006403,1746477051822,-151.0,0.0003315,14]
[360006404,1746477051832,-275.282959,0.0003315,14]
[360006405,1746477051842,-826.75,0.0003315,8]
[360006406,1746477051853,-400.0,0.0003315,8]
[360006407,1746477051863,-1300.61,0.0003315,8]
[360006408,1746477051873,-1570.62,0.0003315,8]
[360006409,1746477051882,-400.0,0.0003315,8]
[360006410,1746477051892,-467.3906669,0.0003315,8]
[360006411,1746477051902,-400.0,0.0003315,8]
[360006412,1746477051912,-400.0,0.0003315,8]
[360006413,1746477051924,-923.0,0.0003315,8]
[360006414,1746477051934,-400.0,0.0003315,8]
[360006415,1746477051945,-400.0,0.0003315,8]
[360006416,1746477051955,-400.0,0.0003315,8]
[360006417,1746477051965,-400.0,0.0003315,8]
[360006418,1746477051975,-400.0,0.0003315,8]
[360006419,1746477051986,-400.0,0.0003315,8]
[360006420,1746477051995,-400.0,0.0003315,8]
[360006421,1746477052006,-407.51,0.0003315,8]
[360006422,1746477052015,-151.0,0.0003315,14]
[360006423,1746477052025,-151.0,0.0003315,14]
[360006424,1746477052035,-151.0,0.0003315,14]
[360006425,1746477052045,-518.33,0.0003315,8]
[360006426,1746477052054,-151.0,0.0003315,14]
[360006427,1746477052064,-400.0,0.0003315,8]
[360006428,1746477052074,-400.0,0.0003315,8]
[360006429,1746477052083,-151.0,0.0003315,14]
[360006430,1746477052093,-151.0,0.0003315,14]
[360006431,1746477052103,-400.0,0.0003315,8]
[360006432,1746477052113,-400.0,0.0003315,8]
[360006433,1746477052123,-400.0,0.0003315,8]
[360006434,1746477052132,-400.0,0.0003315,8]
[360006435,1746477052143,-400.0,0.0003315,8]
[360006436,1746477052153,-850.47,0.0003315,8]
[360006437,1746477052162,-400.0,0.0003315,8]
[360006438,1746477052174,-896.58,0.0003315,8]
[360006439,1746477052185,-867.32,0.0003315,8]
[360006440,1746477052195,-400.0,0.0003315,8]
[360006441,1746477052205,-1581.59,0.0003315,8]
[360006442,1746477052215,-400.0,0.0003315,8]
[360006443,1746477052226,-779.84,0.0003315,8]
[360006444,1746477052237,-400.0,0.0003315,8]
[360006445,1746477052247,-412.63,0.0003315,8]
[360006446,1746477052257,-1026.12,0.0003315,8]
[360006447,1746477052267,-400.0,0.0003315,8]
[360006448,1746477052277,-963.38,0.0003315,8]
[360006449,1746477052286,-400.0,0.0003315,8]
[360006450,1746477052297,-400.0,0.0003315,8]
[360006451,1746477052306,-400.0,0.0003315,8]
[360006452,1746477052316,-1360.62,0.0003315,8]
[360006453,1746477052326,-400.0,0.0003315,8]
[360006454,1746477052336,-151.0,0.0003315,14]
[360006455,1746477052346,-400.0,0.0003315,8]
[360006456,1746477052356,-178.905606,0.0003315,14]
[360006457,1746477052366,-3350.06,0.0003315,2]
[360006458,1746477052376,-843.52,0.0003315,8]
[360006459,1746477052386,-400.0,0.0003315,8]
[360006460,1746477052396,-400.0,0.0003315,8]
[360006461,1746477052406,-400.0,0.0003315,8]
[360006462,1746477052417,-400.0,0.0003315,8]
[360006463,1746477052428,-400.0,0.0003315,8]
[360006464,1746477052437,-218.67067451,0.0003315,8]
[360006465,1746477052447,-400.0,0.0003315,8]
[360006466,1746477052457,-491.06,0.0003315,8]
[360006467,1746477052467,-400.0,0.0003315,8]
[360006468,1746477052477,-306.93288657,0.0003315,8]
[360006469,1746477052486,-400.0,0.0003315,8]
[360006470,1746477052496,-749.47,0.0003315,8]
[360006471,1746477052506,-510.86268837,0.0003315,8]
[360006472,1746477052516,-417.03,0.0003315,8]
[360006473,1746477052526,-400.0,0.0003315,8]
[360006474,1746477052538,-1603.07,0.0003315,8]
[360006475,1746477052547,-400.0,0.0003315,8]
[360006476,1746477052556,-304.91783303,0.0003315,7]
[360006477,1746477052566,-400.0,0.0003315,8]
[360006478,1746477052576,-400.0,0.0003315,8]
[360006479,1746477052585,-400.0,0.0003315,8]
[360006480,1746477052595,-151.0,0.0003315,14]
[360006481,1746477052605,-151.0,0.0003315,14]
[360006482,1746477052615,-400.0,0.0003315,8]
[360006483,1746477052625,-400.0,0.0003315,8]
[360006484,1746477052635,-400.0,0.0003315,8]
[360006485,1746477052646,-265.84133,0.0003315,14]
[360006486,1746477052655,-400.0,0.0003315,8]
[360006487,1746477052666,-400.0,0.0003315,8]
[360006488,1746477052676,-400.0,0.0003315,8]
[360006489,1746477052686,-1004.78,0.0003315,8]
[360006490,1746477052696,-441.29,0.0003315,8]
[360006491,1746477052706,-400.0,0.0003315,8]
[360006492,1746477052716,-6760.003047,0.0003315,2]
[360006493,1746477052726,-6760.003047,0.0003315,2]
[360006494,1746477052736,-400.0,0.0003315,8]
[360006495,1746477052746,-6760.003047,0.0003315,2]
[360006496,1746477052756,-6760.003047,0.0003315,2]
[360006497,1746477052766,-1250.72,0.0003315,8]
[360006498,1746477052777,-400.0,0.0003315,8]
[360006499,1746477052787,-400.0,0.0003315,8]
[360006500,1746477052797,-535.58,0.0003315,8]
[360006501,1746477052808,-400.0,0.0003315,8]
[360006502,1746477052819,-400.0,0.0003315,8]
[360006503,1746477052829,-400.0,0.0003315,8]
[360006504,1746477052840,-400.0,0.0003315,8]
[360006505,1746477052850,-606.68,0.0003315,8]
[360006506,1746477052861,-941.65,0.0003315,8]
[360006507,1746477052871,-400.0,0.0003315,8]
[360006508,1746477052882,-400.0,0.0003315,8]
[360006509,1746477052891,-553.65,0.0003315,8]
[360006510,1746477052901,-630.89,0.0003315,8]
[360006511,1746477052911,-151.0,0.0003315,14]
[360006512,1746477052927,-151.0,0.0003315,14]
[360006513,1746477052937,-992.75,0.0003315,8]
[360006514,1746477052947,-400.0,0.0003315,8]
[360006515,1746477052958,-400.0,0.0003315,8]
[360006516,1746477052967,-400.0,0.0003315,8]
[360006517,1746477052978,-1225.91,0.0003315,8]
[360006518,1746477052988,-400.0,0.0003315,8]
[360006519,1746477052998,-307.102977,0.0003315,14]
[360006520,1746477053008,-307.102977,0.0003315,14]
[360006521,1746477053018,-311.15332568,0.0003315,8]
[360006522,1746477053028,-400.0,0.0003315,8]
[360006523,1746477053038,-307.102977,0.0003315,14]
[360006524,1746477053049,-307.102977,0.0003315,14]
[360006525,1746477053059,-400.0,0.0003315,8]
[360006526,1746477053070,-400.0,0.0003315,8]
[360006527,1746477053080,-400.0,0.0003315,8]
[360006528,1746477053090,-400.0,0.0003315,8]
[360006529,1746477053100,-500.0,0.0003315,8]
[360006530,1746477053110,-407.11,0.0003315,8]
[360006531,1746477053120,-400.0,0.0003315,8]
[360006532,1746477053130,-400.0,0.0003315,8]
[360006533,1746477053140,-316.26635777,0.0003315,8]
[360006534,1746477053149,-400.0,0.0003315,8]
[360006535,1746477053159,-400.0,0.0003315,8]
[360006536,1746477053173,-400.0,0.0003315,8]
[360006537,1746477053183,-400.0,0.0003315,8]
[360006538,1746477053193,-275.10983,0.0003315,2]
[360006539,1746477053206,-400.0,0.0003315,8]
[360006540,1746477053216,-400.0,0.0003315,8]
[360006541,1746477053227,-275.10983,0.0003315,2]
[360006542,1746477053237,-275.10983,0.0003315,2]
[360006543,1746477053247,-3599.95,0.0003315,8]
[360006544,1746477053258,-400.0,0.0003315,8]
[360006545,1746477053268,-275.10983,0.0003315,2]
[360006546,1746477053279,-2897.28,0.0003315,8]
[360006547,1746477053289,-400.0,0.0003315,8]
[360006548,1746477053301,-481.35,0.0003315,8]
[360006549,1746477053311,-2205.69,0.0003315,8]
[360006550,1746477053324,-3492.57,0.0003315,8]
[360006551,1746477053335,-2970.08,0.0003315,8]
[360006552,1746477053345,-819.48,0.0003315,8]
[360006553,1746477053356,-1931.64,0.0003315,8]
[360006554,1746477053366,-400.0,0.0003315,8]
[360006555,1746477053377,-400.0,0.0003315,8]
[360006556,1746477053387,-505.28799801,0.0003315,8]
[360006557,1746477053398,-400.0,0.0003315,8]
[360006558,1746477053408,-400.0,0.0003315,8]
[360006559,1746477053422,-438.54,0.0003315,8]
[360006560,1746477053432,-400.0,0.0003315,8]
[360006561,1746477053442,-1111.28,0.0003315,8]
[360006562,1746477053452,-884.25,0.0003315,8]
[360006563,1746477053463,-400.0,0.0003315,8]
[360006564,1746477053472,-400.0,0.0003315,8]
[360006565,1746477053482,-400.0,0.0003315,8]
[360006566,1746477053492,-410.67542105,0.0003315,8]
[360006567,1746477053502,-400.0,0.0003315,8]
[360006568,1746477053512,-400.0,0.0003315,8]
[360006569,1746477053523,-400.0,0.0003315,8]
[360006570,1746477053536,-400.0,0.0003315,8]
[360006571,1746477053547,-400.0,0.0003315,8]
[360006572,1746477053557,-3000.85,0.0003315,8]
[360006573,1746477053568,-824.62,0.0003315,8]
[360006574,1746477053578,-400.0,0.0003315,8]
[360006575,1746477053588,-455.62,0.0003315,8]
[360006576,1746477053598,-400.0,0.0003315,8]
[360006577,1746477053610,-400.0,0.0003315,8]
[360006578,1746477053620,-500.0,0.0003315,8]
[360006579,1746477053630,-476.47,0.0003315,8]
[360006580,1746477053640,-1260.63,0.0003315,8]
[360006581,1746477053650,-9929.17,0.0003315,8]
[360006582,1746477053660,-2404.52,0.0003315,8]
[360006583,1746477053675,-400.0,0.0003315,8]